[Event "*** SCC Grand Prix: Titled Tuesday Blitz"]
[Site "Chess.com"]
[Date "2020.09.08"]
[Round "5"]
[White "Korchmar_Vasiliy"]
[Black "vladislavkovalev"]
[Result "1-0"]
[WhiteElo "2620"]
[BlackElo "2832"]
[TimeControl "180+1"]
[EndTime "10:56:20 PDT"]
[Termination "Korchmar_Vasiliy won by resignation"]

1. d4 {[%clk 0:03:00.9]} 1... Nf6 {[%clk 0:02:59.9]} 2. Nf3 {[%clk 0:03:01.1]}
2... g6 {[%clk 0:03:00.1]} 3. Bg5 {[%clk 0:03:01.1]} 3... Bg7 {[%clk 0:03:00.5]}
4. Nbd2 {[%clk 0:03:01.5]} 4... O-O {[%clk 0:03:00.8]} 5. e3 {[%clk 0:03:02]}
5... d6 {[%clk 0:03:01.4]} 6. Bd3 {[%clk 0:03:01]} 6... b6 {[%clk 0:02:57.8]} 7.
O-O {[%clk 0:03:00.7]} 7... Bb7 {[%clk 0:02:58.2]} 8. c3 {[%clk 0:02:58.2]} 8...
Nbd7 {[%clk 0:02:57.9]} 9. a4 {[%clk 0:02:57]} 9... a6 {[%clk 0:02:58.1]} 10.
Re1 {[%clk 0:02:55.8]} 10... c5 {[%clk 0:02:58.7]} 11. e4 {[%clk 0:02:55.6]}
11... cxd4 {[%clk 0:02:56.7]} 12. cxd4 {[%clk 0:02:56.5]} 12... e5 {[%clk
0:02:37]} 13. Nc4 {[%clk 0:02:51.5]} 13... h6 {[%clk 0:02:31.7]} 14. Bh4 {[%clk
0:02:35.4]} 14... Qe7 {[%clk 0:02:29.8]} 15. d5 {[%clk 0:02:13.7]} 15... Rfc8
{[%clk 0:02:23.9]} 16. b4 {[%clk 0:02:09.2]} 16... Rc7 {[%clk 0:01:52.4]} 17.
Nfd2 {[%clk 0:02:09.3]} 17... Rac8 {[%clk 0:01:46.9]} 18. f3 {[%clk 0:02:09.4]}
18... Qf8 {[%clk 0:01:14.5]} 19. Bf2 {[%clk 0:02:08.9]} 19... Nh5 {[%clk
0:01:15.2]} 20. Nxb6 {[%clk 0:01:44.7]} 20... Nxb6 {[%clk 0:01:12.7]} 21. Bxb6
{[%clk 0:01:45.6]} 21... Nf4 {[%clk 0:00:54.2]} 22. Bf1 {[%clk 0:01:45.5]} 22...
Rc2 {[%clk 0:00:52.3]} 23. Be3 {[%clk 0:01:28.8]} 23... f5 {[%clk 0:00:43.8]}
24. b5 {[%clk 0:01:10.9]} 24... axb5 {[%clk 0:00:37.7]} 25. axb5 {[%clk
0:01:11.8]} 25... fxe4 {[%clk 0:00:36]} 26. Nxe4 {[%clk 0:01:07]} 26... Nxd5
{[%clk 0:00:31.4]} 27. Bf2 {[%clk 0:01:05.8]} 27... Rb2 {[%clk 0:00:15.1]} 28.
Ra7 {[%clk 0:01:04]} 28... Qf7 {[%clk 0:00:12.3]} 29. Nxd6 {[%clk 0:01:02.5]}
29... Qf4 {[%clk 0:00:09.3]} 30. Rxb7 {[%clk 0:00:50.2]} 30... Rcc2 {[%clk
0:00:01.3]} 31. Qxd5+ {[%clk 0:00:49.3]} 31... Kh7 {[%clk 0:00:02.2]} 32. Ra1
{[%clk 0:00:34.7]} 32... Rxf2 {[%clk 0:00:01.7]} 33. Rxg7+ {[%clk 0:00:35.2]}
33... Kxg7 {[%clk 0:00:02.4]} 34. Ra7+ {[%clk 0:00:35.2]} 34... Kf6 {[%clk
0:00:03.3]} 35. Rf7+ {[%clk 0:00:31]} 35... Kg5 {[%clk 0:00:03.8]} 36. Rxf4
{[%clk 0:00:29.7]} 36... Rxf1+ {[%clk 0:00:02.6]} 37. Kxf1 {[%clk 0:00:29.3]}
1-0

[Event "*** SCC Grand Prix: Titled Tuesday Blitz"]
[Site "Chess.com"]
[Date "2020.09.08"]
[Round "5"]
[White "Alexander_Moskalenko"]
[Black "AldokhinIvan"]
[Result "1-0"]
[WhiteElo "2797"]
[BlackElo "2568"]
[TimeControl "180+1"]
[EndTime "10:56:22 PDT"]
[Termination "Alexander_Moskalenko won by resignation"]

1. c4 {[%clk 0:03:00.9]} 1... Nf6 {[%clk 0:02:59.8]} 2. Nc3 {[%clk 0:03:00.7]}
2... g6 {[%clk 0:03:00.1]} 3. g3 {[%clk 0:03:00.4]} 3... Bg7 {[%clk 0:03:00]} 4.
Bg2 {[%clk 0:03:01.3]} 4... O-O {[%clk 0:03:00.3]} 5. d4 {[%clk 0:03:00.6]} 5...
d6 {[%clk 0:03:00.8]} 6. Nf3 {[%clk 0:03:01]} 6... Nc6 {[%clk 0:03:01.2]} 7. O-O
{[%clk 0:03:01.4]} 7... Bf5 {[%clk 0:03:01.6]} 8. d5 {[%clk 0:02:57.8]} 8... Na5
{[%clk 0:03:01.3]} 9. Nd2 {[%clk 0:02:57.8]} 9... c5 {[%clk 0:03:01.3]} 10. e4
{[%clk 0:02:44.5]} 10... Bd7 {[%clk 0:03:01.2]} 11. Qc2 {[%clk 0:02:44.8]} 11...
e6 {[%clk 0:03:01.2]} 12. a4 {[%clk 0:02:39.7]} 12... exd5 {[%clk 0:03:00.9]}
13. cxd5 {[%clk 0:02:39.4]} 13... Re8 {[%clk 0:02:59.8]} 14. Re1 {[%clk
0:02:39.2]} 14... a6 {[%clk 0:02:55.9]} 15. b3 {[%clk 0:02:34.1]} 15... b5
{[%clk 0:02:53.3]} 16. Bb2 {[%clk 0:02:34.6]} 16... Rc8 {[%clk 0:02:41.9]} 17.
axb5 {[%clk 0:02:23.1]} 17... axb5 {[%clk 0:02:39]} 18. h3 {[%clk 0:02:15.2]}
18... h5 {[%clk 0:02:35.6]} 19. Ne2 {[%clk 0:02:14.7]} 19... h4 {[%clk 0:02:22]}
20. g4 {[%clk 0:02:14.3]} 20... c4 {[%clk 0:01:47.5]} 21. b4 {[%clk 0:02:11]}
21... c3 {[%clk 0:01:47.5]} 22. Bxc3 {[%clk 0:02:08.3]} 22... Nxg4 {[%clk
0:01:33]} 23. hxg4 {[%clk 0:01:43.4]} 23... Bxg4 {[%clk 0:01:28.4]} 24. f3
{[%clk 0:01:42.5]} 24... Qb6+ {[%clk 0:01:00.5]} 25. Kh2 {[%clk 0:01:30.1]}
25... Be5+ {[%clk 0:00:59.8]} 26. f4 {[%clk 0:01:24.9]} 26... Rxc3 {[%clk
0:00:39.3]} 27. Nxc3 {[%clk 0:01:15.3]} 27... Bxf4+ {[%clk 0:00:29.5]} 28. Kh1
{[%clk 0:01:10.8]} 28... h3 {[%clk 0:00:28.7]} 29. Bxh3 {[%clk 0:00:50.4]} 29...
Qf2 {[%clk 0:00:24.4]} 30. Bg2 {[%clk 0:00:47.4]} 30... Qh4+ {[%clk 0:00:16.7]}
31. Kg1 {[%clk 0:00:47]} 31... Bh2+ {[%clk 0:00:08.7]} 32. Kf1 {[%clk 0:00:46]}
32... Qf6+ {[%clk 0:00:08.7]} 33. Nf3 {[%clk 0:00:44.7]} 33... Bxf3 {[%clk
0:00:08.3]} 34. bxa5 {[%clk 0:00:43.5]} 34... Bxe4+ {[%clk 0:00:06.9]} 35. Qf2
{[%clk 0:00:44.1]} 35... Bxg2+ {[%clk 0:00:04.7]} 36. Kxg2 {[%clk 0:00:43.7]}
36... Qg5+ {[%clk 0:00:05.2]} 37. Kxh2 {[%clk 0:00:42.6]} 37... Qh5+ {[%clk
0:00:05.2]} 38. Kg1 {[%clk 0:00:41.3]} 38... Rc8 {[%clk 0:00:05.4]} 39. Ne4
{[%clk 0:00:40.2]} 39... Qg4+ {[%clk 0:00:05.1]} 40. Qg3 {[%clk 0:00:39.7]}
40... Qxg3+ {[%clk 0:00:05]} 1-0

[Event "*** SCC Grand Prix: Titled Tuesday Blitz"]
[Site "Chess.com"]
[Date "2020.09.08"]
[Round "5"]
[White "MariaFominykh"]
[Black "IroniaSudby"]
[Result "0-1"]
[WhiteElo "2342"]
[BlackElo "2506"]
[TimeControl "180+1"]
[EndTime "10:56:23 PDT"]
[Termination "IroniaSudby won on time"]

1. Nf3 {[%clk 0:02:56.5]} 1... Nf6 {[%clk 0:03:00]} 2. g3 {[%clk 0:02:54.1]}
2... b6 {[%clk 0:03:00.4]} 3. Bg2 {[%clk 0:02:54.5]} 3... Bb7 {[%clk 0:03:01]}
4. O-O {[%clk 0:02:54.7]} 4... c5 {[%clk 0:03:01.7]} 5. d3 {[%clk 0:02:54.3]}
5... g6 {[%clk 0:03:00.9]} 6. e4 {[%clk 0:02:54.3]} 6... Bg7 {[%clk 0:03:01.3]}
7. e5 {[%clk 0:02:52.2]} 7... Nd5 {[%clk 0:03:01.1]} 8. Re1 {[%clk 0:02:51.5]}
8... O-O {[%clk 0:03:00.6]} 9. a4 {[%clk 0:02:51.3]} 9... a6 {[%clk 0:03:00.4]}
10. Nc3 {[%clk 0:02:26.1]} 10... Nb4 {[%clk 0:02:53.5]} 11. Bf4 {[%clk
0:02:18.7]} 11... N8c6 {[%clk 0:02:49]} 12. Ne4 {[%clk 0:02:06.1]} 12... Nd5
{[%clk 0:02:33.2]} 13. Bd2 {[%clk 0:01:24.9]} 13... Qc7 {[%clk 0:02:27.5]} 14.
c4 {[%clk 0:01:08.5]} 14... Ndb4 {[%clk 0:02:25.9]} 15. Bc3 {[%clk 0:01:08.7]}
15... Rad8 {[%clk 0:02:05.2]} 16. a5 {[%clk 0:00:54.4]} 16... Nxa5 {[%clk
0:01:59.7]} 17. d4 {[%clk 0:00:36.6]} 17... d5 {[%clk 0:01:35.7]} 18. exd6
{[%clk 0:00:33.9]} 18... exd6 {[%clk 0:01:36.1]} 19. d5 {[%clk 0:00:25.3]} 19...
Nxc4 {[%clk 0:01:14.1]} 20. Nf6+ {[%clk 0:00:19.6]} 20... Bxf6 {[%clk
0:01:01.7]} 21. Bxf6 {[%clk 0:00:19]} 21... Nxd5 {[%clk 0:01:02.2]} 22. Bxd8
{[%clk 0:00:14.7]} 22... Rxd8 {[%clk 0:01:03.1]} 23. Ng5 {[%clk 0:00:13.8]}
23... Nf6 {[%clk 0:00:39.3]} 24. Bxb7 {[%clk 0:00:13.5]} 24... Qxb7 {[%clk
0:00:39.4]} 25. Qe2 {[%clk 0:00:10.1]} 25... Ne5 {[%clk 0:00:33]} 26. f4 {[%clk
0:00:07.3]} 26... Neg4 {[%clk 0:00:20.9]} 27. Qxa6 {[%clk 0:00:06.5]} 27... Qd5
{[%clk 0:00:14.8]} 28. Qe2 {[%clk 0:00:04.5]} 28... Qd4+ {[%clk 0:00:13.8]} 29.
Kg2 {[%clk 0:00:03.4]} 29... Re8 {[%clk 0:00:11.9]} 30. Qf3 {[%clk 0:00:01.4]}
30... Qxb2+ {[%clk 0:00:09.5]} 0-1

[Event "*** SCC Grand Prix: Titled Tuesday Blitz"]
[Site "Chess.com"]
[Date "2020.09.08"]
[Round "5"]
[White "saraswathii"]
[Black "boasovietica"]
[Result "1-0"]
[WhiteElo "2336"]
[BlackElo "2481"]
[TimeControl "180+1"]
[EndTime "10:56:24 PDT"]
[Termination "saraswathii won by resignation"]

1. e4 {[%clk 0:03:00.9]} 1... e5 {[%clk 0:02:59.6]} 2. d3 {[%clk 0:02:56.1]}
2... Nf6 {[%clk 0:02:57.1]} 3. Nf3 {[%clk 0:02:43.9]} 3... Nc6 {[%clk
0:02:56.1]} 4. g3 {[%clk 0:02:42.7]} 4... Bc5 {[%clk 0:02:51.9]} 5. Bg2 {[%clk
0:02:41.4]} 5... d6 {[%clk 0:02:41.3]} 6. O-O {[%clk 0:02:40.2]} 6... Be6 {[%clk
0:02:39.1]} 7. c3 {[%clk 0:02:38]} 7... Bb6 {[%clk 0:02:35.9]} 8. Qe2 {[%clk
0:02:36.6]} 8... Qd7 {[%clk 0:02:35.5]} 9. Nbd2 {[%clk 0:02:31.8]} 9... Bh3
{[%clk 0:02:33.5]} 10. Nc4 {[%clk 0:02:25.8]} 10... Bxg2 {[%clk 0:02:29.5]} 11.
Kxg2 {[%clk 0:02:21.9]} 11... O-O {[%clk 0:02:24.4]} 12. Ne3 {[%clk 0:02:20.6]}
12... Qe7 {[%clk 0:02:09.5]} 13. Nf5 {[%clk 0:02:19.5]} 13... Qe6 {[%clk
0:02:05.5]} 14. Ng5 {[%clk 0:02:15.1]} 14... Qe8 {[%clk 0:02:04.9]} 15. f4
{[%clk 0:02:12.4]} 15... h6 {[%clk 0:01:48.7]} 16. Nf3 {[%clk 0:02:06.1]} 16...
Nd7 {[%clk 0:01:18.8]} 17. N3h4 {[%clk 0:02:02.4]} 17... Kh7 {[%clk 0:01:09]}
18. Qg4 {[%clk 0:01:57.1]} 18... g6 {[%clk 0:01:02.2]} 19. Ne3 {[%clk
0:01:47.9]} 19... Nf6 {[%clk 0:00:45]} 20. Qh3 {[%clk 0:01:44.7]} 20... Qd7
{[%clk 0:00:38.2]} 21. f5 {[%clk 0:01:35.5]} 21... g5 {[%clk 0:00:34]} 22. Nf3
{[%clk 0:01:34.4]} 22... Rg8 {[%clk 0:00:32.7]} 23. Nxg5+ {[%clk 0:01:22.1]}
23... Rxg5 {[%clk 0:00:30.6]} 24. Nd5 {[%clk 0:01:16.8]} 24... Nxd5 {[%clk
0:00:05.5]} 25. Bxg5 {[%clk 0:01:06.8]} 25... Ne3+ {[%clk 0:00:05.8]} 26. Kh1
{[%clk 0:00:59]} 26... Rh8 {[%clk 0:00:05]} 27. Rf3 {[%clk 0:00:53.9]} 27... Nc2
{[%clk 0:00:01.6]} 28. Rc1 {[%clk 0:00:52.2]} 28... Kg8 {[%clk 0:00:02]} 29. Bf6
{[%clk 0:00:51.2]} 29... Be3 {[%clk 0:00:01.7]} 30. Qg4+ {[%clk 0:00:49.9]}
30... Bg5 {[%clk 0:00:01.8]} 31. Bxh8 {[%clk 0:00:39.5]} 31... Kxh8 {[%clk
0:00:01.7]} 32. Rxc2 {[%clk 0:00:39.4]} 32... Bf6 {[%clk 0:00:02]} 33. Qh5
{[%clk 0:00:38.4]} 33... Bg7 {[%clk 0:00:02.3]} 34. g4 {[%clk 0:00:37.5]} 34...
f6 {[%clk 0:00:02.5]} 35. h4 {[%clk 0:00:36.9]} 35... Ne7 {[%clk 0:00:02.8]} 36.
g5 {[%clk 0:00:37]} 36... fxg5 {[%clk 0:00:03]} 37. hxg5 {[%clk 0:00:37.9]}
37... Ng8 {[%clk 0:00:03.1]} 38. f6 {[%clk 0:00:36.9]} 38... Bf8 {[%clk
0:00:03.3]} 39. g6 {[%clk 0:00:36.7]} 39... Nxf6 {[%clk 0:00:03]} 1-0

[Event "*** SCC Grand Prix: Titled Tuesday Blitz"]
[Site "Chess.com"]
[Date "2020.09.08"]
[Round "5"]
[White "Zmof"]
[Black "bazar-wokzal"]
[Result "0-1"]
[WhiteElo "2237"]
[BlackElo "2475"]
[TimeControl "180+1"]
[EndTime "10:56:24 PDT"]
[Termination "bazar-wokzal won by checkmate"]

1. e4 {[%clk 0:03:00.9]} 1... Nc6 {[%clk 0:02:59.3]} 2. Nf3 {[%clk 0:02:58.7]}
2... d5 {[%clk 0:02:59.2]} 3. exd5 {[%clk 0:02:57.3]} 3... Qxd5 {[%clk
0:02:59.6]} 4. Nc3 {[%clk 0:02:57.9]} 4... Qa5 {[%clk 0:03:00.2]} 5. d4 {[%clk
0:02:58.1]} 5... Bg4 {[%clk 0:02:59.9]} 6. Be2 {[%clk 0:02:57.1]} 6... O-O-O
{[%clk 0:02:59.4]} 7. Be3 {[%clk 0:02:55.3]} 7... Nf6 {[%clk 0:02:58.4]} 8. h3
{[%clk 0:02:53]} 8... Bxf3 {[%clk 0:02:56.7]} 9. Bxf3 {[%clk 0:02:52.7]} 9...
Nxd4 {[%clk 0:02:56.8]} 10. Bxd4 {[%clk 0:02:51.1]} 10... Qb4 {[%clk 0:02:56.3]}
11. O-O {[%clk 0:02:39.3]} 11... Rxd4 {[%clk 0:02:50]} 12. Qe2 {[%clk
0:02:39.5]} 12... e6 {[%clk 0:02:49.6]} 13. a3 {[%clk 0:02:36]} 13... Qc4 {[%clk
0:02:42.9]} 14. Qe3 {[%clk 0:02:23.9]} 14... Qc5 {[%clk 0:01:43.5]} 15. Nb5
{[%clk 0:02:11.1]} 15... Ra4 {[%clk 0:01:36]} 16. Qb3 {[%clk 0:02:02]} 16... Ra6
{[%clk 0:01:26.3]} 17. Rad1 {[%clk 0:01:44.3]} 17... Rb6 {[%clk 0:01:06.4]} 18.
Qd3 {[%clk 0:01:18.3]} 18... Be7 {[%clk 0:00:58.8]} 19. a4 {[%clk 0:01:12]}
19... Rd8 {[%clk 0:00:50.9]} 20. Qe2 {[%clk 0:00:59.7]} 20... a6 {[%clk
0:00:40.4]} 21. Rxd8+ {[%clk 0:00:59.1]} 21... Bxd8 {[%clk 0:00:39.6]} 22. Nc3
{[%clk 0:00:49.6]} 22... Rxb2 {[%clk 0:00:36.7]} 23. Ne4 {[%clk 0:00:45]} 23...
Qxc2 {[%clk 0:00:31.1]} 24. Qe3 {[%clk 0:00:32]} 24... Rb1 {[%clk 0:00:17.5]}
25. Qa7 {[%clk 0:00:23]} 25... Rxf1+ {[%clk 0:00:16.8]} 26. Kxf1 {[%clk
0:00:23.3]} 26... Qb1+ {[%clk 0:00:13.3]} 27. Ke2 {[%clk 0:00:22.8]} 27... Nd5
{[%clk 0:00:11.5]} 28. Qa8+ {[%clk 0:00:20.3]} 28... Kd7 {[%clk 0:00:10.4]} 29.
Nc5+ {[%clk 0:00:21]} 29... Kc6 {[%clk 0:00:09.6]} 30. Bxd5+ {[%clk 0:00:20.5]}
30... exd5 {[%clk 0:00:08.1]} 31. Nd3 {[%clk 0:00:20.2]} 31... Qc2+ {[%clk
0:00:07.6]} 32. Ke3 {[%clk 0:00:20.7]} 32... Bg5+ {[%clk 0:00:07.6]} 33. f4
{[%clk 0:00:21.4]} 33... d4+ {[%clk 0:00:08]} 34. Ke4 {[%clk 0:00:21.4]} 34...
Qe2+ {[%clk 0:00:07.7]} 35. Kxd4 {[%clk 0:00:21.5]} 35... Bf6+ {[%clk
0:00:08.2]} 36. Kc4 {[%clk 0:00:21.8]} 36... Qc2+ {[%clk 0:00:08.4]} 37. Kb4
{[%clk 0:00:22.3]} 37... Qc3# {[%clk 0:00:07.8]} 0-1

[Event "*** SCC Grand Prix: Titled Tuesday Blitz"]
[Site "Chess.com"]
[Date "2020.09.08"]
[Round "5"]
[White "creativity"]
[Black "Ave_Mariia"]
[Result "0-1"]
[WhiteElo "2087"]
[BlackElo "2453"]
[TimeControl "180+1"]
[EndTime "10:56:26 PDT"]
[Termination "Ave_Mariia won by resignation"]

1. d4 {[%clk 0:03:00.9]} 1... Nf6 {[%clk 0:02:58.8]} 2. c4 {[%clk 0:03:00.4]}
2... e6 {[%clk 0:02:58.5]} 3. Nc3 {[%clk 0:03:00.1]} 3... Bb4 {[%clk 0:02:58.2]}
4. Qc2 {[%clk 0:02:59.8]} 4... O-O {[%clk 0:02:55.7]} 5. a3 {[%clk 0:02:57.8]}
5... Bxc3+ {[%clk 0:02:53.8]} 6. Qxc3 {[%clk 0:02:58.5]} 6... Ne4 {[%clk
0:02:45.1]} 7. Qc2 {[%clk 0:02:57.8]} 7... d5 {[%clk 0:02:45.5]} 8. Nf3 {[%clk
0:02:49.1]} 8... Nd7 {[%clk 0:02:35.9]} 9. cxd5 {[%clk 0:02:39.8]} 9... exd5
{[%clk 0:02:34.7]} 10. Bf4 {[%clk 0:02:39.1]} 10... c6 {[%clk 0:02:30.4]} 11. e3
{[%clk 0:02:36.6]} 11... Re8 {[%clk 0:02:25]} 12. Bd3 {[%clk 0:02:32.6]} 12...
Nf8 {[%clk 0:02:23.7]} 13. h3 {[%clk 0:02:18]} 13... Bf5 {[%clk 0:02:15.3]} 14.
O-O {[%clk 0:02:15.9]} 14... Ng6 {[%clk 0:02:08.9]} 15. Bh2 {[%clk 0:02:12.9]}
15... Qf6 {[%clk 0:02:08.4]} 16. Ne5 {[%clk 0:02:01.7]} 16... Nxe5 {[%clk
0:02:03.5]} 17. dxe5 {[%clk 0:01:51.1]} 17... Qg6 {[%clk 0:01:53.6]} 18. f3
{[%clk 0:01:45.6]} 18... Ng3 {[%clk 0:01:45.3]} 19. Rfd1 {[%clk 0:01:23]} 19...
h5 {[%clk 0:01:32.3]} 20. Bxg3 {[%clk 0:01:09.6]} 20... Bxd3 {[%clk 0:01:30.5]}
21. Rxd3 {[%clk 0:01:01.2]} 21... Qxg3 {[%clk 0:01:30.1]} 22. f4 {[%clk
0:01:00.3]} 22... Qg6 {[%clk 0:01:18.8]} 23. Rc1 {[%clk 0:00:56.5]} 23... f6
{[%clk 0:01:13.3]} 24. exf6 {[%clk 0:00:47.1]} 24... Qxf6 {[%clk 0:01:14.2]} 25.
Qc3 {[%clk 0:00:39.4]} 25... Qxc3 {[%clk 0:01:10]} 26. Rdxc3 {[%clk 0:00:34.1]}
26... Kf7 {[%clk 0:01:03.7]} 27. b4 {[%clk 0:00:33.3]} 27... a6 {[%clk
0:01:00.5]} 28. Kf2 {[%clk 0:00:32.8]} 28... Re4 {[%clk 0:00:58.3]} 29. g4
{[%clk 0:00:31.4]} 29... hxg4 {[%clk 0:00:56.5]} 30. hxg4 {[%clk 0:00:31.2]}
30... Rh8 {[%clk 0:00:54.4]} 31. Kg3 {[%clk 0:00:30]} 31... Rhe8 {[%clk
0:00:43.3]} 32. Kf3 {[%clk 0:00:29.2]} 32... g5 {[%clk 0:00:39.6]} 33. f5 {[%clk
0:00:27.7]} 33... Rh8 {[%clk 0:00:37.2]} 34. Rg1 {[%clk 0:00:26.6]} 34... Kf6
{[%clk 0:00:31.8]} 35. Rc5 {[%clk 0:00:19.5]} 35... Rh3+ {[%clk 0:00:30]} 36.
Rg3 {[%clk 0:00:16.5]} 36... Rxg3+ {[%clk 0:00:30]} 37. Kxg3 {[%clk 0:00:16.3]}
37... Rxe3+ {[%clk 0:00:29.2]} 38. Kf2 {[%clk 0:00:15.6]} 38... Rxa3 {[%clk
0:00:27.9]} 0-1

[Event "*** SCC Grand Prix: Titled Tuesday Blitz"]
[Site "Chess.com"]
[Date "2020.09.08"]
[Round "5"]
[White "CalinGheorghiu"]
[Black "mr65"]
[Result "1-0"]
[WhiteElo "2346"]
[BlackElo "2153"]
[TimeControl "180+1"]
[EndTime "10:56:26 PDT"]
[Termination "CalinGheorghiu won on time"]

1. e4 {[%clk 0:03:00.9]} 1... e5 {[%clk 0:02:27.9]} 2. Nf3 {[%clk 0:03:00]} 2...
Nc6 {[%clk 0:02:27.8]} 3. Bb5 {[%clk 0:02:58.9]} 3... a6 {[%clk 0:02:26.9]} 4.
Ba4 {[%clk 0:02:58.6]} 4... Nf6 {[%clk 0:02:26.9]} 5. d3 {[%clk 0:02:58.5]} 5...
b5 {[%clk 0:02:24.3]} 6. Bb3 {[%clk 0:02:58.2]} 6... Be7 {[%clk 0:02:24.2]} 7.
O-O {[%clk 0:02:56.9]} 7... d6 {[%clk 0:02:22.9]} 8. c3 {[%clk 0:02:56.4]} 8...
O-O {[%clk 0:02:21.3]} 9. Nbd2 {[%clk 0:02:56.7]} 9... Na5 {[%clk 0:02:16.9]}
10. Bc2 {[%clk 0:02:55.9]} 10... c5 {[%clk 0:02:16.8]} 11. Re1 {[%clk
0:02:55.3]} 11... Nc6 {[%clk 0:02:11.1]} 12. Nf1 {[%clk 0:02:52]} 12... Re8
{[%clk 0:02:10.9]} 13. Ne3 {[%clk 0:02:48.4]} 13... h6 {[%clk 0:02:08.9]} 14. a4
{[%clk 0:02:48.5]} 14... Bb7 {[%clk 0:02:06.4]} 15. Bb3 {[%clk 0:02:35.7]} 15...
Bf8 {[%clk 0:02:03.6]} 16. Ba2 {[%clk 0:02:31.7]} 16... Ne7 {[%clk 0:01:45.2]}
17. axb5 {[%clk 0:02:23.4]} 17... axb5 {[%clk 0:01:42.9]} 18. Qb3 {[%clk
0:02:20.4]} 18... c4 {[%clk 0:01:37.3]} 19. Qxb5 {[%clk 0:02:19.8]} 19... Ba6
{[%clk 0:01:30.5]} 20. Qa4 {[%clk 0:02:09.5]} 20... cxd3 {[%clk 0:01:28.9]} 21.
Qb3 {[%clk 0:01:57.8]} 21... d5 {[%clk 0:01:22.8]} 22. Nxd5 {[%clk 0:01:43.2]}
22... Nexd5 {[%clk 0:01:20.7]} 23. exd5 {[%clk 0:01:42.9]} 23... e4 {[%clk
0:01:16.4]} 24. Nd4 {[%clk 0:01:40.2]} 24... Rc8 {[%clk 0:01:09.7]} 25. Qa4
{[%clk 0:01:38.2]} 25... Qd6 {[%clk 0:01:03.3]} 26. Nf5 {[%clk 0:01:15.1]} 26...
Qe5 {[%clk 0:01:00.1]} 27. Nxh6+ {[%clk 0:01:12.9]} 27... gxh6 {[%clk
0:00:59.6]} 28. Qxa6 {[%clk 0:01:13.5]} 28... Rcd8 {[%clk 0:00:33]} 29. Be3
{[%clk 0:01:07.6]} 29... Rd6 {[%clk 0:00:32]} 30. Qa4 {[%clk 0:00:55.5]} 30...
Ng4 {[%clk 0:00:29.5]} 31. g3 {[%clk 0:00:55.3]} 31... Nxe3 {[%clk 0:00:28.2]}
32. Rxe3 {[%clk 0:00:54.7]} 32... f5 {[%clk 0:00:27.8]} 33. Rae1 {[%clk
0:00:41.9]} 33... h5 {[%clk 0:00:26.7]} 34. c4 {[%clk 0:00:36.1]} 34... Rh6
{[%clk 0:00:09.5]} 35. c5 {[%clk 0:00:35.9]} 35... Bxc5 {[%clk 0:00:07.3]} 36.
d6+ {[%clk 0:00:36.3]} 36... Kh8 {[%clk 0:00:06.3]} 37. d7 {[%clk 0:00:36]}
37... Rd8 {[%clk 0:00:04.6]} 38. Rxd3 {[%clk 0:00:35.1]} 38... h4 {[%clk
0:00:02.4]} 39. Rd5 {[%clk 0:00:34]} 1-0

[Event "*** SCC Grand Prix: Titled Tuesday Blitz"]
[Site "Chess.com"]
[Date "2020.09.08"]
[Round "5"]
[White "Synctel"]
[Black "glebus008"]
[Result "0-1"]
[WhiteElo "1981"]
[BlackElo "2169"]
[TimeControl "180+1"]
[EndTime "10:56:26 PDT"]
[Termination "glebus008 won on time"]

1. e4 {[%clk 0:03:00.9]} 1... d5 {[%clk 0:02:55]} 2. Nc3 {[%clk 0:03:00.2]} 2...
d4 {[%clk 0:02:50.1]} 3. Nce2 {[%clk 0:03:00.2]} 3... e5 {[%clk 0:02:46.1]} 4.
Ng3 {[%clk 0:03:00.5]} 4... c5 {[%clk 0:02:36.1]} 5. Nf3 {[%clk 0:02:52.8]} 5...
f6 {[%clk 0:02:33.5]} 6. Bb5+ {[%clk 0:02:48]} 6... Nc6 {[%clk 0:02:26]} 7.
Bxc6+ {[%clk 0:02:41.2]} 7... bxc6 {[%clk 0:02:25.2]} 8. d3 {[%clk 0:02:42.1]}
8... Be6 {[%clk 0:02:17.9]} 9. O-O {[%clk 0:01:12.6]} 9... g5 {[%clk 0:02:13.1]}
10. b3 {[%clk 0:01:10.2]} 10... h5 {[%clk 0:02:11.7]} 11. h4 {[%clk 0:00:57.2]}
11... g4 {[%clk 0:02:00.3]} 12. Nh2 {[%clk 0:00:51.6]} 12... f5 {[%clk 0:01:57]}
13. exf5 {[%clk 0:00:43]} 13... Bd5 {[%clk 0:01:52.2]} 14. Bg5 {[%clk
0:00:20.9]} 14... Be7 {[%clk 0:01:48.7]} 15. Qd2 {[%clk 0:00:19.5]} 15... Nf6
{[%clk 0:01:42.2]} 16. Rae1 {[%clk 0:00:18.1]} 16... Qd6 {[%clk 0:01:38.7]} 17.
f3 {[%clk 0:00:15.6]} 17... O-O-O {[%clk 0:01:29.6]} 18. Ne4 {[%clk 0:00:13.1]}
18... Nxe4 {[%clk 0:01:23.5]} 19. fxe4 {[%clk 0:00:13.5]} 19... Bf7 {[%clk
0:01:20.5]} 20. g3 {[%clk 0:00:12.5]} 20... Rdg8 {[%clk 0:01:02.4]} 21. Bxe7
{[%clk 0:00:12.6]} 21... Qxe7 {[%clk 0:00:58.9]} 22. Qa5 {[%clk 0:00:13.5]}
22... Kb7 {[%clk 0:00:52]} 23. Rb1 {[%clk 0:00:13.4]} 23... Qc7 {[%clk
0:00:46.5]} 24. Qa4 {[%clk 0:00:11.7]} 24... Qb6 {[%clk 0:00:27.6]} 25. b4
{[%clk 0:00:09.3]} 25... Ka8 {[%clk 0:00:24.1]} 26. bxc5 {[%clk 0:00:04.7]}
26... Qc7 {[%clk 0:00:23]} 27. Rb4 {[%clk 0:00:02.9]} 27... Rb8 {[%clk
0:00:13.3]} 28. Rfb1 {[%clk 0:00:02.7]} 28... Rxb4 {[%clk 0:00:09.4]} 0-1